[Event "*** SCC Grand Prix: Titled Tuesday Blitz"]
[Site "Chess.com"]
[Date "2020.08.11"]
[Round "9"]
[White "Jovidon91"]
[Black "LubovMarkelova"]
[Result "1-0"]
[WhiteElo "2437"]
[BlackElo "2279"]
[TimeControl "180+1"]
[EndTime "11:42:22 PDT"]
[Termination "Jovidon91 won by checkmate"]

1. d4 {[%clk 0:03:00.9]} 1... Nf6 {[%clk 0:02:59.1]} 2. Nc3 {[%clk 0:02:55.9]}
2... d5 {[%clk 0:02:57.4]} 3. f3 {[%clk 0:02:55.1]} 3... e6 {[%clk 0:02:55.2]}
4. e4 {[%clk 0:02:53.7]} 4... dxe4 {[%clk 0:02:53.3]} 5. fxe4 {[%clk 0:02:54.6]}
5... Bb4 {[%clk 0:02:53.8]} 6. e5 {[%clk 0:02:53.4]} 6... Ne4 {[%clk 0:02:28.6]}
7. Qd3 {[%clk 0:02:51.5]} 7... Nxc3 {[%clk 0:02:25.4]} 8. bxc3 {[%clk
0:02:52.4]} 8... Be7 {[%clk 0:02:25.8]} 9. Nf3 {[%clk 0:02:43.7]} 9... c5 {[%clk
0:02:15.8]} 10. Be2 {[%clk 0:02:42]} 10... O-O {[%clk 0:02:09.1]} 11. O-O {[%clk
0:02:40.8]} 11... Nc6 {[%clk 0:02:07.5]} 12. Qe4 {[%clk 0:02:34.1]} 12... Qd5
{[%clk 0:01:59]} 13. Qg4 {[%clk 0:02:28.7]} 13... f5 {[%clk 0:01:42.9]} 14. exf6
{[%clk 0:02:03.5]} 14... Bxf6 {[%clk 0:01:41.3]} 15. Ba3 {[%clk 0:01:54.7]}
15... e5 {[%clk 0:01:33.7]} 16. Qh5 {[%clk 0:01:53.4]} 16... g6 {[%clk
0:01:26.3]} 17. Qh6 {[%clk 0:01:48.9]} 17... exd4 {[%clk 0:01:25.1]} 18. Ng5
{[%clk 0:01:41.5]} 18... Qxg5 {[%clk 0:01:24.2]} 19. Bc4+ {[%clk 0:01:38.3]}
19... Kh8 {[%clk 0:01:23.5]} 20. Qxf8# {[%clk 0:01:34.7]} 1-0

[Event "*** SCC Grand Prix: Titled Tuesday Blitz"]
[Site "Chess.com"]
[Date "2020.08.11"]
[Round "9"]
[White "MFguimaraes"]
[Black "PawnEatingZombie"]
[Result "1-0"]
[WhiteElo "2414"]
[BlackElo "2206"]
[TimeControl "180+1"]
[EndTime "11:42:24 PDT"]
[Termination "MFguimaraes won by resignation"]

1. e4 {[%clk 0:03:00.9]} 1... c6 {[%clk 0:02:59.9]} 2. Bc4 {[%clk 0:02:59.2]}
2... d5 {[%clk 0:02:59.5]} 3. Bb3 {[%clk 0:02:59.6]} 3... dxe4 {[%clk
0:02:54.5]} 4. Qh5 {[%clk 0:02:58.3]} 4... g6 {[%clk 0:02:49.6]} 5. Qh4 {[%clk
0:02:58.5]} 5... Nf6 {[%clk 0:02:45.8]} 6. Nc3 {[%clk 0:02:58.1]} 6... Bg7
{[%clk 0:02:40.4]} 7. Nxe4 {[%clk 0:02:56.4]} 7... Nxe4 {[%clk 0:02:34.7]} 8.
Qxe4 {[%clk 0:02:57.3]} 8... O-O {[%clk 0:02:32.5]} 9. Nf3 {[%clk 0:02:57.4]}
9... Nd7 {[%clk 0:02:32.7]} 10. d4 {[%clk 0:02:57.4]} 10... Nf6 {[%clk
0:02:32.8]} 11. Qh4 {[%clk 0:02:57.4]} 11... a5 {[%clk 0:02:18.1]} 12. a4 {[%clk
0:02:56.8]} 12... Bf5 {[%clk 0:02:03.3]} 13. O-O {[%clk 0:02:54]} 13... Be4
{[%clk 0:01:44.9]} 14. Ne5 {[%clk 0:02:43.7]} 14... Bd5 {[%clk 0:01:42.5]} 15.
c4 {[%clk 0:02:39.9]} 15... Be6 {[%clk 0:01:42.2]} 16. Bg5 {[%clk 0:02:22.8]}
16... Qb6 {[%clk 0:01:21.8]} 17. Ra3 {[%clk 0:02:19.5]} 17... Rfd8 {[%clk
0:01:14.6]} 18. c5 {[%clk 0:02:18.2]} 18... Qb4 {[%clk 0:01:06.8]} 19. Bxe6
{[%clk 0:02:15]} 19... fxe6 {[%clk 0:01:07.7]} 20. Qh3 {[%clk 0:02:07]} 20...
Qxd4 {[%clk 0:00:55]} 21. Qxe6+ {[%clk 0:02:06.4]} 1-0

[Event "*** SCC Grand Prix: Titled Tuesday Blitz"]
[Site "Chess.com"]
[Date "2020.08.11"]
[Round "9"]
[White "FedaMaster"]
[Black "ENEASZ"]
[Result "1-0"]
[WhiteElo "2429"]
[BlackElo "2570"]
[TimeControl "180+1"]
[EndTime "11:42:30 PDT"]
[Termination "FedaMaster won by resignation"]

1. e4 {[%clk 0:03:00.9]} 1... d6 {[%clk 0:02:59.7]} 2. d4 {[%clk 0:03:00.7]}
2... Nf6 {[%clk 0:02:59.2]} 3. Bd3 {[%clk 0:03:00.3]} 3... e5 {[%clk 0:02:59.1]}
4. c3 {[%clk 0:02:58.4]} 4... Nc6 {[%clk 0:02:56]} 5. Nf3 {[%clk 0:02:57.6]}
5... g6 {[%clk 0:02:54.6]} 6. dxe5 {[%clk 0:02:53.1]} 6... dxe5 {[%clk
0:02:51.6]} 7. O-O {[%clk 0:02:51.5]} 7... Bg7 {[%clk 0:02:50.7]} 8. Bg5 {[%clk
0:02:49.1]} 8... h6 {[%clk 0:02:49.6]} 9. Bxf6 {[%clk 0:02:49.2]} 9... Qxf6
{[%clk 0:02:50.5]} 10. Qe2 {[%clk 0:02:47.6]} 10... O-O {[%clk 0:02:49.5]} 11.
Nbd2 {[%clk 0:02:47.8]} 11... Nd8 {[%clk 0:02:48.1]} 12. a4 {[%clk 0:02:45.2]}
12... Ne6 {[%clk 0:02:48.1]} 13. g3 {[%clk 0:02:44.2]} 13... Nc5 {[%clk
0:02:48.1]} 14. Bc2 {[%clk 0:02:42.2]} 14... a5 {[%clk 0:02:47.6]} 15. Ne1
{[%clk 0:02:31.7]} 15... Bh3 {[%clk 0:02:46.1]} 16. Ng2 {[%clk 0:02:31.7]} 16...
h5 {[%clk 0:02:45.6]} 17. Rfe1 {[%clk 0:02:26.9]} 17... Bh6 {[%clk 0:02:45.1]}
18. Ne3 {[%clk 0:02:23.9]} 18... c6 {[%clk 0:02:41.2]} 19. Rad1 {[%clk
0:02:17.3]} 19... Rad8 {[%clk 0:02:40.4]} 20. Ndc4 {[%clk 0:02:16.9]} 20... h4
{[%clk 0:02:22.6]} 21. Ng4 {[%clk 0:02:08.2]} 21... Bxg4 {[%clk 0:02:17]} 22.
Qxg4 {[%clk 0:02:09.1]} 22... hxg3 {[%clk 0:02:17.5]} 23. hxg3 {[%clk
0:02:09.4]} 23... Kg7 {[%clk 0:02:00.8]} 24. Nxa5 {[%clk 0:02:04.8]} 24... Qe7
{[%clk 0:01:54.9]} 25. Kg2 {[%clk 0:01:54.7]} 25... Bg5 {[%clk 0:01:52.9]} 26.
Rxd8 {[%clk 0:01:23.9]} 26... Rxd8 {[%clk 0:01:51.6]} 27. Rd1 {[%clk 0:01:24.4]}
27... Rxd1 {[%clk 0:01:47.4]} 28. Qxd1 {[%clk 0:01:25.3]} 28... Bc1 {[%clk
0:01:48.1]} 29. Qxc1 {[%clk 0:01:22.2]} 1-0

[Event "*** SCC Grand Prix: Titled Tuesday Blitz"]
[Site "Chess.com"]
[Date "2020.08.11"]
[Round "9"]
[White "WiktoriaPOL"]
[Black "TudorAnton"]
[Result "1-0"]
[WhiteElo "1896"]
[BlackElo "2489"]
[TimeControl "180+1"]
[EndTime "11:42:56 PDT"]
[Termination "WiktoriaPOL won by resignation"]

1. c4 {[%clk 0:03:00.9]} 1... g6 {[%clk 0:03:00.9]} 2. Nc3 {[%clk 0:03:00.1]}
2... Bg7 {[%clk 0:02:59.6]} 3. g3 {[%clk 0:02:59.5]} 3... Nf6 {[%clk 0:02:55.1]}
4. Bg2 {[%clk 0:02:59]} 4... O-O {[%clk 0:02:52.7]} 5. e4 {[%clk 0:02:58.3]}
5... d6 {[%clk 0:02:50.2]} 6. Nge2 {[%clk 0:02:57.5]} 6... c5 {[%clk 0:02:47.2]}
7. d3 {[%clk 0:02:56.8]} 7... Nc6 {[%clk 0:02:46.6]} 8. O-O {[%clk 0:02:56.1]}
8... Bd7 {[%clk 0:02:41.1]} 9. f4 {[%clk 0:02:50.9]} 9... Qc8 {[%clk 0:02:36.9]}
10. Qe1 {[%clk 0:02:38.8]} 10... Rb8 {[%clk 0:02:30.3]} 11. Qf2 {[%clk
0:02:35.4]} 11... Ng4 {[%clk 0:02:27.9]} 12. Qf3 {[%clk 0:02:31]} 12... Nd4
{[%clk 0:02:24.9]} 13. Nxd4 {[%clk 0:02:25.7]} 13... Bxd4+ {[%clk 0:02:25.8]}
14. Kh1 {[%clk 0:02:24.6]} 14... Nxh2 {[%clk 0:02:19.7]} 15. Kxh2 {[%clk
0:02:00.5]} 15... Bg4 {[%clk 0:02:19]} 16. Bh3 {[%clk 0:01:58.5]} 16... Bxh3
{[%clk 0:02:17.6]} 17. Rh1 {[%clk 0:01:57]} 17... Bg4 {[%clk 0:02:10.7]} 18. Qf1
{[%clk 0:01:50.7]} 18... h5 {[%clk 0:02:10.1]} 19. f5 {[%clk 0:01:42.3]} 19...
e6 {[%clk 0:02:06.2]} 20. f6 {[%clk 0:01:38]} 20... e5 {[%clk 0:02:06.4]} 21.
Bh6 {[%clk 0:01:27.9]} 21... Qe6 {[%clk 0:02:01.5]} 22. Nd5 {[%clk 0:01:07.6]}
22... Rfd8 {[%clk 0:01:56.1]} 23. Ne7+ {[%clk 0:01:03.2]} 23... Kh7 {[%clk
0:01:55.8]} 24. Bg7 {[%clk 0:00:59.6]} 24... Rd7 {[%clk 0:01:55.5]} 25. Qc1
{[%clk 0:00:55.3]} 1-0

[Event "*** SCC Grand Prix: Titled Tuesday Blitz"]
[Site "Chess.com"]
[Date "2020.08.11"]
[Round "9"]
[White "Lenyas66"]
[Black "politeplayer"]
[Result "0-1"]
[WhiteElo "2474"]
[BlackElo "2268"]
[TimeControl "180+1"]
[EndTime "11:43:05 PDT"]
[Termination "politeplayer won by resignation"]

1. e4 {[%clk 0:03:00.9]} 1... e6 {[%clk 0:02:59.8]} 2. d4 {[%clk 0:03:00.5]}
2... d5 {[%clk 0:03:00]} 3. Nd2 {[%clk 0:03:00.6]} 3... dxe4 {[%clk 0:03:00.1]}
4. Nxe4 {[%clk 0:03:00.8]} 4... Nd7 {[%clk 0:03:00.3]} 5. Nf3 {[%clk 0:03:00.3]}
5... Ngf6 {[%clk 0:02:59.7]} 6. Nxf6+ {[%clk 0:03:00.6]} 6... Nxf6 {[%clk
0:02:57.4]} 7. Bd3 {[%clk 0:03:00.7]} 7... c5 {[%clk 0:02:56.7]} 8. O-O {[%clk
0:03:00.5]} 8... cxd4 {[%clk 0:02:56.1]} 9. Nxd4 {[%clk 0:03:00.6]} 9... Bc5
{[%clk 0:02:56]} 10. Nb3 {[%clk 0:03:00.4]} 10... Bb6 {[%clk 0:02:53.8]} 11. Qf3
{[%clk 0:02:59.2]} 11... Qd5 {[%clk 0:02:21.3]} 12. Qg3 {[%clk 0:02:55.5]} 12...
Bd7 {[%clk 0:02:21.4]} 13. c4 {[%clk 0:02:54.3]} 13... Qc6 {[%clk 0:02:09.7]}
14. c5 {[%clk 0:02:33]} 14... Bc7 {[%clk 0:02:07.3]} 15. Qh3 {[%clk 0:02:31]}
15... h5 {[%clk 0:01:43.5]} 16. Re1 {[%clk 0:02:07.1]} 16... Ng4 {[%clk
0:01:34.4]} 17. g3 {[%clk 0:02:06]} 17... Qf3 {[%clk 0:00:58.8]} 18. Be3 {[%clk
0:01:57]} 18... Bc6 {[%clk 0:00:54]} 19. Kf1 {[%clk 0:01:53.3]} 19... O-O-O
{[%clk 0:00:42.8]} 0-1

[Event "*** SCC Grand Prix: Titled Tuesday Blitz"]
[Site "Chess.com"]
[Date "2020.08.11"]
[Round "9"]
[White "Mikhail_Golubev"]
[Black "Caterpiller35"]
[Result "1-0"]
[WhiteElo "2578"]
[BlackElo "2404"]
[TimeControl "180+1"]
[EndTime "11:43:21 PDT"]
[Termination "Mikhail_Golubev won by resignation"]

1. e4 {[%clk 0:02:35.9]} 1... c5 {[%clk 0:02:59.5]} 2. Nf3 {[%clk 0:02:35.3]}
2... Nc6 {[%clk 0:02:59.8]} 3. Nc3 {[%clk 0:02:35.3]} 3... e5 {[%clk 0:02:58.6]}
4. Bc4 {[%clk 0:02:35.1]} 4... Be7 {[%clk 0:02:59.1]} 5. d3 {[%clk 0:02:35.1]}
5... Nf6 {[%clk 0:02:59.2]} 6. Ng5 {[%clk 0:02:32.1]} 6... O-O {[%clk
0:02:58.3]} 7. h4 {[%clk 0:02:27.1]} 7... Nd4 {[%clk 0:02:49.8]} 8. Nd5 {[%clk
0:02:12.2]} 8... b5 {[%clk 0:02:17.1]} 9. Nxf6+ {[%clk 0:02:06.1]} 9... Bxf6
{[%clk 0:02:17.8]} 10. Qh5 {[%clk 0:02:03.8]} 10... h6 {[%clk 0:02:07.6]} 11.
Bxf7+ {[%clk 0:01:56.8]} 11... Rxf7 {[%clk 0:01:54.5]} 12. Qxf7+ {[%clk
0:01:52.1]} 12... Kh8 {[%clk 0:01:54.7]} 13. Kd1 {[%clk 0:01:23.4]} 13... c4
{[%clk 0:01:49.2]} 14. Qd5 {[%clk 0:01:15.8]} 14... Bxg5 {[%clk 0:01:25.3]} 15.
hxg5 {[%clk 0:01:10.2]} 15... d6 {[%clk 0:01:25.4]} 16. gxh6 {[%clk 0:01:07]}
16... g6 {[%clk 0:01:25.1]} 17. Qf7 {[%clk 0:01:00.9]} 17... Qg8 {[%clk
0:01:10.9]} 18. Qxg8+ {[%clk 0:00:58.7]} 18... Kxg8 {[%clk 0:01:11.8]} 19. h7+
{[%clk 0:00:58.7]} 19... Kh8 {[%clk 0:01:11.7]} 20. Bg5 {[%clk 0:00:58.8]} 1-0

[Event "*** SCC Grand Prix: Titled Tuesday Blitz"]
[Site "Chess.com"]
[Date "2020.08.11"]
[Round "9"]
[White "ural58"]
[Black "slavenok"]
[Result "0-1"]
[WhiteElo "2518"]
[BlackElo "2719"]
[TimeControl "180+1"]
[EndTime "11:43:29 PDT"]
[Termination "slavenok won by resignation"]

1. e4 {[%clk 0:03:00.9]} 1... c5 {[%clk 0:02:59.5]} 2. b3 {[%clk 0:02:46.5]}
2... e6 {[%clk 0:02:58.9]} 3. Qe2 {[%clk 0:02:34.2]} 3... a6 {[%clk 0:02:57.7]}
4. Bb2 {[%clk 0:02:28.3]} 4... Nc6 {[%clk 0:02:55.9]} 5. f4 {[%clk 0:02:19.6]}
5... d6 {[%clk 0:02:53.9]} 6. Nc3 {[%clk 0:02:15.9]} 6... Nf6 {[%clk 0:02:52.5]}
7. O-O-O {[%clk 0:02:03.7]} 7... Be7 {[%clk 0:02:51.8]} 8. g4 {[%clk 0:02:03]}
8... Nd4 {[%clk 0:02:49.3]} 9. Qg2 {[%clk 0:01:25.5]} 9... O-O {[%clk
0:02:46.3]} 10. g5 {[%clk 0:01:23.9]} 10... Nh5 {[%clk 0:02:43.7]} 11. Nce2
{[%clk 0:01:23.9]} 11... e5 {[%clk 0:02:40]} 12. h4 {[%clk 0:01:19.7]} 12... a5
{[%clk 0:02:39.7]} 13. a4 {[%clk 0:01:17.1]} 13... b5 {[%clk 0:02:37.1]} 14.
Nxd4 {[%clk 0:01:17]} 14... cxd4 {[%clk 0:02:33.8]} 15. Bxb5 {[%clk 0:01:16.9]}
15... Nxf4 {[%clk 0:02:30.6]} 16. Qf1 {[%clk 0:01:17]} 16... Bd7 {[%clk
0:02:24.8]} 17. c3 {[%clk 0:01:12.5]} 17... Bxb5 {[%clk 0:02:16.9]} 18. axb5
{[%clk 0:01:09.6]} 18... a4 {[%clk 0:02:16.2]} 19. cxd4 {[%clk 0:01:09.6]} 19...
axb3 {[%clk 0:02:05]} 20. Ne2 {[%clk 0:00:46.9]} 20... Qa5 {[%clk 0:01:56.4]}
21. Nc3 {[%clk 0:00:45.6]} 21... Rfc8 {[%clk 0:01:52.2]} 22. Re1 {[%clk
0:00:33.3]} 22... d5 {[%clk 0:01:47.5]} 23. dxe5 {[%clk 0:00:27.7]} 23... d4
{[%clk 0:01:44.4]} 24. Qxf4 {[%clk 0:00:27.6]} 24... dxc3 {[%clk 0:01:42.6]} 25.
dxc3 {[%clk 0:00:27.7]} 25... Rxc3+ {[%clk 0:01:38.3]} 0-1

[Event "*** SCC Grand Prix: Titled Tuesday Blitz"]
[Site "Chess.com"]
[Date "2020.08.11"]
[Round "9"]
[White "Fh2411"]
[Black "eightbyeightchess"]
[Result "0-1"]
[WhiteElo "2551"]
[BlackElo "2455"]
[TimeControl "180+1"]
[EndTime "11:43:30 PDT"]
[Termination "eightbyeightchess won by resignation"]

1. d4 {[%clk 0:03:00.9]} 1... d5 {[%clk 0:02:59.5]} 2. Nf3 {[%clk 0:03:01.4]}
2... Nf6 {[%clk 0:02:59.3]} 3. c4 {[%clk 0:03:01.6]} 3... c6 {[%clk 0:02:59.3]}
4. Nc3 {[%clk 0:03:00.6]} 4... dxc4 {[%clk 0:02:59.5]} 5. a4 {[%clk 0:03:01.2]}
5... Bf5 {[%clk 0:02:59.1]} 6. e3 {[%clk 0:03:01.2]} 6... e6 {[%clk 0:02:58.9]}
7. Bxc4 {[%clk 0:03:01.7]} 7... Nbd7 {[%clk 0:02:59.5]} 8. O-O {[%clk
0:03:01.7]} 8... Bb4 {[%clk 0:02:59]} 9. Qe2 {[%clk 0:03:02.1]} 9... Bg6 {[%clk
0:02:59]} 10. e4 {[%clk 0:03:01.9]} 10... Bxc3 {[%clk 0:02:59.1]} 11. bxc3
{[%clk 0:03:02.1]} 11... Nxe4 {[%clk 0:02:59.8]} 12. Ba3 {[%clk 0:03:01.3]}
12... Qc7 {[%clk 0:02:58.6]} 13. Rac1 {[%clk 0:02:35.6]} 13... O-O-O {[%clk
0:02:57.7]} 14. Rfe1 {[%clk 0:02:27.7]} 14... Kb8 {[%clk 0:02:24.5]} 15. Qb2
{[%clk 0:02:24.4]} 15... Ka8 {[%clk 0:02:22.8]} 16. Ra1 {[%clk 0:02:17.6]} 16...
Nb6 {[%clk 0:02:21.6]} 17. Bb3 {[%clk 0:02:16.3]} 17... Nd5 {[%clk 0:02:19.5]}
18. c4 {[%clk 0:02:00.4]} 18... Nf4 {[%clk 0:02:17.9]} 19. Ne5 {[%clk
0:01:57.6]} 19... f6 {[%clk 0:01:13]} 20. Nxg6 {[%clk 0:01:50.6]} 20... hxg6
{[%clk 0:01:13.9]} 21. Rxe4 {[%clk 0:01:33.6]} 21... Rxh2 {[%clk 0:01:13.5]} 22.
Rxf4 {[%clk 0:01:19.6]} 22... Qxf4 {[%clk 0:01:11]} 23. g3 {[%clk 0:01:02.3]}
23... Qf3 {[%clk 0:01:05.5]} 0-1

[Event "*** SCC Grand Prix: Titled Tuesday Blitz"]
[Site "Chess.com"]
[Date "2020.08.11"]
[Round "9"]
[White "Meri-Arabidze"]
[Black "grunbergmihai"]
[Result "1-0"]
[WhiteElo "2607"]
[BlackElo "2458"]
[TimeControl "180+1"]
[EndTime "11:43:47 PDT"]
[Termination "Meri-Arabidze won by resignation"]

1. d4 {[%clk 0:03:00.9]} 1... Nf6 {[%clk 0:02:57.1]} 2. c4 {[%clk 0:03:00.6]}
2... g6 {[%clk 0:02:57.4]} 3. g3 {[%clk 0:03:00.1]} 3... d5 {[%clk 0:02:57.5]}
4. cxd5 {[%clk 0:02:59]} 4... Nxd5 {[%clk 0:02:57.3]} 5. Bg2 {[%clk 0:02:59.3]}
5... Bg7 {[%clk 0:02:56.4]} 6. Nf3 {[%clk 0:02:59.6]} 6... Nc6 {[%clk
0:02:55.4]} 7. O-O {[%clk 0:02:59.6]} 7... O-O {[%clk 0:02:55.3]} 8. e4 {[%clk
0:02:53.5]} 8... Nb6 {[%clk 0:02:54.6]} 9. d5 {[%clk 0:02:53.4]} 9... Na5 {[%clk
0:02:45.7]} 10. Nc3 {[%clk 0:02:53.6]} 10... c6 {[%clk 0:02:43.7]} 11. Re1
{[%clk 0:02:53.7]} 11... Bg4 {[%clk 0:02:42]} 12. h3 {[%clk 0:02:52.3]} 12...
Bxf3 {[%clk 0:02:41.7]} 13. Qxf3 {[%clk 0:02:51.9]} 13... cxd5 {[%clk
0:02:40.3]} 14. exd5 {[%clk 0:02:51.8]} 14... Nac4 {[%clk 0:02:39.2]} 15. Bg5
{[%clk 0:02:41.6]} 15... Re8 {[%clk 0:02:34.4]} 16. b3 {[%clk 0:02:36.9]} 16...
Nd6 {[%clk 0:02:30]} 17. Rac1 {[%clk 0:02:36]} 17... Rc8 {[%clk 0:02:28.5]} 18.
Ne4 {[%clk 0:02:20.7]} 18... Rxc1 {[%clk 0:02:25.1]} 19. Rxc1 {[%clk 0:02:19]}
19... Nf5 {[%clk 0:02:24.2]} 20. d6 {[%clk 0:02:11.3]} 20... Nxd6 {[%clk
0:02:22.1]} 21. Nxd6 {[%clk 0:02:11.3]} 21... Qxd6 {[%clk 0:02:21.8]} 22. Qxb7
{[%clk 0:02:11.2]} 22... Qa3 {[%clk 0:02:16.1]} 23. Rc2 {[%clk 0:02:04.1]} 23...
Qd6 {[%clk 0:02:00.6]} 24. Kh2 {[%clk 0:01:57.2]} 24... Qa3 {[%clk 0:01:38.3]}
25. Bc6 {[%clk 0:01:46.2]} 25... Rc8 {[%clk 0:01:31.7]} 26. Bxe7 {[%clk
0:01:44.9]} 26... Qa5 {[%clk 0:01:30.1]} 27. Bc5 {[%clk 0:01:35]} 27... Rd8
{[%clk 0:01:20.4]} 28. b4 {[%clk 0:01:33.8]} 28... Qa3 {[%clk 0:01:17.7]} 29.
Qe7 {[%clk 0:01:30.3]} 29... Qd3 {[%clk 0:01:10.9]} 30. Be8 {[%clk 0:01:15.5]}
30... Qxc2 {[%clk 0:00:49.7]} 31. Bxf7+ {[%clk 0:01:14.3]} 1-0

[Event "*** SCC Grand Prix: Titled Tuesday Blitz"]
[Site "Chess.com"]
[Date "2020.08.11"]
[Round "9"]
[White "vrekhson"]
[Black "Agibileg"]
[Result "0-1"]
[WhiteElo "2152"]
[BlackElo "2406"]
[TimeControl "180+1"]
[EndTime "11:43:47 PDT"]
[Termination "Agibileg won on time"]

1. e4 {[%clk 0:03:00.9]} 1... c5 {[%clk 0:02:59.8]} 2. Nf3 {[%clk 0:03:00.6]}
2... e6 {[%clk 0:02:59.9]} 3. c3 {[%clk 0:02:59.9]} 3... d5 {[%clk 0:02:58.7]}
4. e5 {[%clk 0:02:57.5]} 4... d4 {[%clk 0:02:55]} 5. Bb5+ {[%clk 0:02:52.9]}
5... Bd7 {[%clk 0:02:51.9]} 6. Be2 {[%clk 0:02:46.1]} 6... Bc6 {[%clk
0:02:46.8]} 7. d3 {[%clk 0:02:46.1]} 7... Ne7 {[%clk 0:02:45.2]} 8. O-O {[%clk
0:02:38.7]} 8... Ng6 {[%clk 0:02:44.1]} 9. cxd4 {[%clk 0:02:33.4]} 9... cxd4
{[%clk 0:02:43.2]} 10. Nbd2 {[%clk 0:02:15.2]} 10... Nd7 {[%clk 0:02:41.5]} 11.
Nc4 {[%clk 0:02:13.4]} 11... Bc5 {[%clk 0:02:36.1]} 12. Nd6+ {[%clk 0:01:58.3]}
12... Bxd6 {[%clk 0:02:35.6]} 13. exd6 {[%clk 0:01:59.2]} 13... e5 {[%clk
0:02:34.8]} 14. Qb3 {[%clk 0:01:44]} 14... O-O {[%clk 0:02:32.6]} 15. Bg5 {[%clk
0:01:37.3]} 15... Nf6 {[%clk 0:02:31.8]} 16. Qa3 {[%clk 0:01:28.7]} 16... h6
{[%clk 0:02:27.4]} 17. Bd2 {[%clk 0:01:23.4]} 17... Qd7 {[%clk 0:02:27.3]} 18.
Rac1 {[%clk 0:01:17]} 18... Nd5 {[%clk 0:02:11]} 19. h4 {[%clk 0:01:08.1]} 19...
Ndf4 {[%clk 0:02:07.5]} 20. Bxf4 {[%clk 0:00:37.5]} 20... Nxf4 {[%clk
0:02:02.3]} 21. Rfe1 {[%clk 0:00:12.3]} 21... Qg4 {[%clk 0:01:39.6]} 22. g3
{[%clk 0:00:03.5]} 22... Nxe2+ {[%clk 0:01:37.3]} 23. Rxe2 {[%clk 0:00:02.1]}
23... Bxf3 {[%clk 0:01:38.2]} 0-1

[Event "*** SCC Grand Prix: Titled Tuesday Blitz"]
[Site "Chess.com"]
[Date "2020.08.11"]
[Round "9"]
[White "GracefulYear"]
[Black "Spriteball"]
[Result "0-1"]
[WhiteElo "2352"]
[BlackElo "2146"]
[TimeControl "180+1"]
[EndTime "11:43:52 PDT"]
[Termination "Spriteball won on time"]

1. d4 {[%clk 0:03:00.9]} 1... d5 {[%clk 0:02:59.2]} 2. c4 {[%clk 0:03:01.8]}
2... c6 {[%clk 0:02:58.1]} 3. Nf3 {[%clk 0:02:58.4]} 3... Nf6 {[%clk 0:02:57.2]}
4. g3 {[%clk 0:02:56.9]} 4... dxc4 {[%clk 0:02:54.7]} 5. Bg2 {[%clk 0:02:55.1]}
5... Bf5 {[%clk 0:02:54.3]} 6. a4 {[%clk 0:02:54.8]} 6... e6 {[%clk 0:02:54.1]}
7. O-O {[%clk 0:02:53.5]} 7... Be7 {[%clk 0:02:54]} 8. Nbd2 {[%clk 0:02:53.4]}
8... Nbd7 {[%clk 0:02:52.4]} 9. Nxc4 {[%clk 0:02:53.2]} 9... O-O {[%clk
0:02:52]} 10. Nfe5 {[%clk 0:02:44.3]} 10... Nxe5 {[%clk 0:02:40.9]} 11. Nxe5
{[%clk 0:02:45.2]} 11... Nd7 {[%clk 0:02:23.7]} 12. Bf4 {[%clk 0:02:14.5]} 12...
Nxe5 {[%clk 0:02:22.2]} 13. Bxe5 {[%clk 0:02:08.8]} 13... Bd6 {[%clk 0:02:21.5]}
14. Bxd6 {[%clk 0:02:06.3]} 14... Qxd6 {[%clk 0:02:22.4]} 15. e4 {[%clk
0:02:06.8]} 15... Bg6 {[%clk 0:02:22.4]} 16. Qc2 {[%clk 0:02:07.3]} 16... Qxd4
{[%clk 0:02:21.1]} 17. Rfd1 {[%clk 0:02:07.6]} 17... Qb4 {[%clk 0:02:18]} 18.
Rd7 {[%clk 0:02:05.7]} 18... Rfd8 {[%clk 0:02:17.6]} 19. Rad1 {[%clk 0:02:03.9]}
19... Rxd7 {[%clk 0:02:17.1]} 20. Rxd7 {[%clk 0:02:04.4]} 20... Qe1+ {[%clk
0:02:17]} 21. Bf1 {[%clk 0:01:55.5]} 21... Bxe4 {[%clk 0:02:16]} 22. Qc5 {[%clk
0:01:19.1]} 22... h6 {[%clk 0:01:42]} 23. Rxb7 {[%clk 0:01:08.6]} 23... Qd1
{[%clk 0:01:41.1]} 24. Qc4 {[%clk 0:00:54.5]} 24... Qf3 {[%clk 0:01:39.4]} 0-1

[Event "*** SCC Grand Prix: Titled Tuesday Blitz"]
[Site "Chess.com"]
[Date "2020.08.11"]
[Round "9"]
[White "paulrusan"]
[Black "Sn00pPawn"]
[Result "1-0"]
[WhiteElo "2204"]
[BlackElo "2011"]
[TimeControl "180+1"]
[EndTime "11:43:52 PDT"]
[Termination "paulrusan won on time"]

1. e4 {[%clk 0:03:00.9]} 1... c5 {[%clk 0:02:59.1]} 2. b4 {[%clk 0:03:00.4]}
2... cxb4 {[%clk 0:02:58.7]} 3. Bb2 {[%clk 0:03:00.3]} 3... d5 {[%clk
0:02:43.8]} 4. exd5 {[%clk 0:02:57.1]} 4... Qxd5 {[%clk 0:02:41.7]} 5. d4 {[%clk
0:02:56.4]} 5... Nc6 {[%clk 0:02:27.2]} 6. c4 {[%clk 0:02:55.6]} 6... bxc3
{[%clk 0:02:15.5]} 7. Nxc3 {[%clk 0:02:55.3]} 7... Qxd4 {[%clk 0:01:38.6]} 8.
Nd5 {[%clk 0:02:53.5]} 8... Qxd1+ {[%clk 0:00:54.2]} 9. Rxd1 {[%clk 0:02:51.4]}
9... Bd7 {[%clk 0:00:54.6]} 10. Nc7+ {[%clk 0:02:51.6]} 10... Kd8 {[%clk
0:00:53]} 11. Nxa8 {[%clk 0:02:52.2]} 11... e5 {[%clk 0:00:48.3]} 12. Bb5 {[%clk
0:02:44.2]} 12... Kc8 {[%clk 0:00:20.4]} 13. Nf3 {[%clk 0:02:41.7]} 13... f6
{[%clk 0:00:18.7]} 14. O-O {[%clk 0:02:41.1]} 14... Bb4 {[%clk 0:00:14.9]} 15.
Rc1 {[%clk 0:02:12.7]} 15... Ne7 {[%clk 0:00:13.9]} 16. Rfd1 {[%clk 0:02:11.6]}
16... Rd8 {[%clk 0:00:09.6]} 17. Nd2 {[%clk 0:01:58]} 17... Be6 {[%clk
0:00:08.7]} 18. Nc4 {[%clk 0:01:51]} 18... Rxd1+ {[%clk 0:00:07.1]} 19. Rxd1
{[%clk 0:01:50.8]} 19... b6 {[%clk 0:00:01.7]} 20. Nd6+ {[%clk 0:01:36.2]} 20...
Kb8 {[%clk 0:00:01.6]} 21. Nxb6 {[%clk 0:01:26.8]} 1-0